bitfinex-derivatives/quotes_BTCF0:USTF0_20250509
["timestamp","ask_amount","ask_price","bid_price","bid_amount"]
[1746796526786,0.06458869,103190.0,103180.0,1.40999782]
[1746796527090,0.25843499,103190.0,103180.0,1.53251128]
[1746796527480,0.06458869,103190.0,103180.0,1.53251128]
[1746796527878,0.06458869,103190.0,103180.0,1.49528221]
[1746796528086,0.06458869,103190.0,103180.0,1.53251128]
[1746796528390,0.45214692,103200.0,103190.0,0.1938463]
[1746796528586,0.48484692,103200.0,103190.0,1.13017308]
[1746796528888,0.48484692,103200.0,103190.0,1.14508735]
[1746796529078,0.48484692,103200.0,103190.0,1.24199126]
[1746796529478,0.51484692,103200.0,103190.0,2.74199126]
[1746796530181,0.67484692,103200.0,103190.0,2.72707794]
[1746796530579,0.79736038,103200.0,103190.0,1.02139659]
[1746796530784,0.79736038,103200.0,103190.0,1.14463659]
[1746796531581,0.67484692,103200.0,103190.0,1.12970448]
[1746796531782,0.67484692,103200.0,103190.0,1.17664103]
[1746796532277,0.67484692,103200.0,103190.0,1.34810386]
[1746796532483,0.67484692,103200.0,103190.0,1.42934067]
[1746796532889,0.67484692,103200.0,103190.0,1.22800448]
[1746796533086,0.67484692,103200.0,103190.0,1.24294166]
[1746796534087,0.43254732,103200.0,103190.0,1.42934104]
[1746796534392,0.43254732,103200.0,103190.0,1.41442677]
[1746796534691,0.62637482,103200.0,103190.0,1.41442677]
[1746796534987,0.62637482,103200.0,103190.0,1.39948959]
[1746796535188,0.43254732,103200.0,103190.0,1.39948959]
[1746796536290,0.43254732,103200.0,103190.0,1.21309021]
[1746796536490,0.43254732,103200.0,103190.0,2.76520466]
[1746796537396,0.3586,103200.0,103190.0,2.76520466]
[1746796537693,0.3267,103200.0,103190.0,2.95160404]
[1746796538087,0.3267,103200.0,103190.0,2.96664414]
[1746796538893,0.3267,103200.0,103190.0,2.96666213]
[1746796539296,0.5205275,103200.0,103190.0,2.52149368]
[1746796539495,0.73762688,103200.0,103190.0,2.64469368]
[1746796539995,0.5512275,103200.0,103190.0,2.67549368]
[1746796540196,0.5512275,103200.0,103190.0,2.70749368]
[1746796540689,0.5512275,103200.0,103190.0,2.69243559]
[1746796540893,0.264,103200.0,103190.0,1.43112256]
[1746796541196,0.264,103200.0,103190.0,1.56182256]
[1746796541395,0.264,103200.0,103190.0,3.06182256]
[1746796542387,0.2949,103200.0,103190.0,2.96182256]
[1746796542590,0.2949,103200.0,103190.0,2.96181813]
[1746796543291,0.2949,103200.0,103190.0,3.06181813]
[1746796543498,0.264,103200.0,103190.0,3.06181813]
[1746796544792,0.297,103200.0,103190.0,3.06181813]
[1746796545287,0.264,103200.0,103190.0,2.72181813]
[1746796545499,0.264,103200.0,103190.0,3.07181813]
[1746796545700,0.264,103200.0,103190.0,2.97181813]
[1746796545899,0.264,103200.0,103190.0,3.07181813]
[1746796546291,0.25673007,103200.0,103190.0,3.07181813]
[1746796547704,0.25673007,103200.0,103190.0,3.05693275]
[1746796548500,0.25673007,103200.0,103190.0,2.95693275]
[1746796548700,0.25673007,103200.0,103190.0,3.05693275]
[1746796548992,0.25673007,103200.0,103190.0,2.95693275]
[1746796549196,0.25673007,103200.0,103190.0,3.07178975]
[1746796550001,0.25673007,103200.0,103190.0,3.07183729]
[1746796550806,0.25673007,103200.0,103190.0,2.88543791]
[1746796551101,0.25673007,103200.0,103190.0,3.07183729]
[1746796551598,0.25673007,103200.0,103190.0,3.05673566]
[1746796551792,0.25673007,103200.0,103190.0,3.07183474]
[1746796553500,0.25673007,103200.0,103190.0,3.07183309]
[1746796554802,0.25673007,103200.0,103190.0,2.97183309]
[1746796555201,0.29003007,103200.0,103190.0,3.05673566]
[1746796555804,0.25673007,103200.0,103190.0,3.1148757]
[1746796556112,0.25673007,103200.0,103190.0,3.0148757]
[1746796556298,0.25673007,103200.0,103190.0,3.1148757]
[1746796556499,0.25673007,103200.0,103190.0,2.85463692]
[1746796556801,0.35453007,103200.0,103190.0,2.85463692]
[1746796557306,0.35453007,103200.0,103190.0,2.90205261]
[1746796557707,0.35453007,103200.0,103190.0,2.96613449]
[1746796558006,0.35453007,103200.0,103190.0,2.7797829]
[1746796558206,0.35453007,103200.0,103190.0,2.96613449]
[1746796558901,0.35453007,103200.0,103190.0,2.84297449]
[1746796559107,0.54835757,103200.0,103190.0,2.90173449]
[1746796559303,0.35453007,103200.0,103190.0,2.90173449]
[1746796559600,1.09066206,103200.0,103190.0,0.4367766]
[1746796559805,1.09066206,103200.0,103190.0,0.5599366]
[1746796560305,1.09066206,103200.0,103190.0,0.4367766]
[1746796560501,1.09066206,103200.0,103190.0,0.5799366]
[1746796560706,1.09066206,103200.0,103190.0,0.57996774]
[1746796561810,1.09066206,103200.0,103190.0,0.24996774]
[1746796562006,1.09792206,103200.0,103190.0,0.35996774]
[1746796562215,1.09792206,103200.0,103190.0,0.23680774]
[1746796562509,1.09792206,103200.0,103190.0,0.4567987]
[1746796562704,1.63117765,103200.0,103190.0,0.2467987]
[1746796562911,1.63117765,103200.0,103190.0,0.1267987]
[1746796563703,1.38117765,103200.0,103190.0,0.1267987]
[1746796564101,1.72999087,103200.0,103190.0,0.1267987]
[1746796564711,1.72999087,103200.0,103190.0,0.02989479]
[1746796565214,1.47999087,103200.0,103190.0,0.02989479]
[1746796566116,1.47999087,103200.0,103190.0,0.014857]
[1746796567920,0.193865,103180.0,103170.0,0.4139641]
[1746796568118,0.38021659,103180.0,103170.0,0.7939641]
[1746796568320,0.47531659,103180.0,103170.0,0.89086801]
[1746796568916,0.47531659,103180.0,103170.0,0.89486801]
[1746796569118,0.63531659,103180.0,103170.0,0.89786801]
[1746796569817,0.99611659,103180.0,103170.0,0.10390391]
[1746796570019,0.99611659,103180.0,103150.0,0.64960099]
[1746796570020,0.1939026,103160.0,103150.0,0.64960099]
[1746796570208,0.38025419,103160.0,103150.0,0.82052129]
[1746796570520,0.2874026,103160.0,103150.0,0.91598987]
[1746796570821,0.2874026,103160.0,103150.0,0.98631894]
[1746796571322,0.2874026,103160.0,103150.0,0.60541894]
[1746796571323,0.63575419,103160.0,103150.0,0.60541894]
[1746796571618,0.63475419,103160.0,103150.0,0.36727567]
[1746796571823,0.63475419,103160.0,103150.0,0.56319707]
[1746796572629,0.63375419,103160.0,103150.0,0.55919707]
[1746796572829,0.63375419,103160.0,103150.0,0.36527567]
[1746796573023,0.99455419,103160.0,103150.0,0.36527567]
[1746796573423,1.09149419,103160.0,103150.0,0.36527567]
[1746796573732,1.21465419,103160.0,103150.0,0.36527567]
[1746796573926,1.21465419,103160.0,103150.0,0.11527567]
[1746796574732,1.21965419,103160.0,103150.0,0.11427567]
[1746796574925,1.22565419,103160.0,103150.0,0.11327567]
[1746796575636,1.22565419,103160.0,103150.0,0.01635297]
[1746796577336,1.0393026,103160.0,103150.0,0.01635297]
[1746796577534,1.22565419,103160.0,103150.0,0.01635297]
[1746796577738,1.23292419,103160.0,103150.0,0.01635297]
[1746796578732,0.1939214,103150.0,103140.0,0.00397498]
[1746796578932,0.80257299,103150.0,103140.0,0.00397498]
[1746796579131,0.193959,103130.0,103120.0,0.2258778]
[1746796579331,0.193959,103130.0,103120.0,0.5758778]
[1746796579526,0.255359,103130.0,103120.0,0.71004836]
[1746796579932,0.255359,103130.0,103120.0,0.72520817]
[1746796580134,0.415359,103130.0,103120.0,0.72520817]
[1746796581036,0.415359,103130.0,103120.0,1.11610817]
[1746796581629,0.415359,103130.0,103120.0,1.30245976]
[1746796581830,0.415359,103130.0,103120.0,1.11610817]
[1746796582934,0.60171059,103130.0,103120.0,0.72520817]
[1746796583338,0.60171059,103130.0,103120.0,0.18123037]
[1746796583339,0.96251059,103130.0,103120.0,0.18123037]
[1746796584039,0.96451059,103130.0,103120.0,0.18123037]
[1746796584236,0.96451059,103130.0,103120.0,0.14933037]
[1746796584434,0.1939778,103120.0,103110.0,0.00397614]
[1746796584633,0.96042939,103120.0,103110.0,0.00397614]
[1746796584838,0.96042939,103120.0,103110.0,0.10094583]
[1746796585239,0.1940155,103100.0,103090.0,0.40642952]
[1746796585440,0.38036709,103100.0,103090.0,0.31185859]
[1746796585635,0.47886709,103100.0,103090.0,0.60287199]
[1746796586239,0.63886709,103100.0,103090.0,0.63497199]
[1746796587131,0.63886709,103100.0,103090.0,0.42697199]
[1746796587344,0.63886709,103100.0,103090.0,0.75697199]
[1746796587642,0.4199155,103100.0,103090.0,0.75897199]
[1746796587841,0.4199155,103100.0,103090.0,1.11977199]
[1746796588237,0.4199155,103100.0,103090.0,0.75897199]
[1746796588438,0.4199155,103100.0,103090.0,1.11977199]
[1746796588639,0.4199155,103100.0,103090.0,0.75897199]
[1746796589039,0.4199155,103100.0,103090.0,1.11977199]
[1746796589432,0.60626709,103100.0,103090.0,0.75897199]
[1746796589631,0.60626709,103100.0,103090.0,1.11977199]
[1746796590539,0.60626709,103100.0,103090.0,0.75897199]
[1746796590737,0.60626709,103100.0,103090.0,1.11977199]
[1746796591146,0.4199155,103100.0,103090.0,1.11977199]
[1746796591337,0.60626709,103100.0,103090.0,1.11977199]
[1746796592642,0.60626709,103100.0,103090.0,0.87977199]
[1746796592850,0.60626709,103100.0,103090.0,0.68573769]
[1746796593147,0.60626709,103100.0,103090.0,1.10977199]
[1746796594844,0.60141449,103100.0,103090.0,1.10977199]
[1746796595238,0.60141449,103100.0,103090.0,0.74897199]
[1746796595644,0.60141449,103100.0,103090.0,0.48897199]
[1746796595844,0.60141449,103100.0,103090.0,0.58493769]
[1746796596041,0.96221449,103100.0,103090.0,0.58493769]
[1746796596442,0.60141449,103100.0,103090.0,0.77897199]
[1746796596638,0.60141449,103100.0,103090.0,0.60090244]
[1746796596840,0.60141449,103100.0,103090.0,0.49157337]
[1746796597041,0.96221449,103100.0,103090.0,0.13077337]
[1746796597549,0.7758629,103100.0,103090.0,0.13077337]
[1746796597750,0.96221449,103100.0,103090.0,0.16207337]
[1746796601554,0.97191959,103100.0,103090.0,0.16207337]
[1746796601948,0.785568,103100.0,103090.0,0.16207337]
[1746796602150,0.97191959,103100.0,103090.0,0.68610767]
[1746796602944,0.97191959,103100.0,103090.0,0.67610767]
[1746796603145,0.97191959,103100.0,103090.0,0.70740767]
[1746796603347,0.97191959,103100.0,103090.0,0.72234234]
[1746796604248,0.785568,103100.0,103090.0,0.56553711]
[1746796604455,0.785568,103100.0,103090.0,0.75957141]
[1746796604651,0.97191959,103100.0,103090.0,0.75957141]
[1746796604855,0.97191959,103100.0,103090.0,0.43957141]
[1746796606654,0.97191959,103100.0,103090.0,0.48957141]
[1746796606954,0.97191959,103100.0,103090.0,0.43957141]
[1746796607255,0.97191959,103100.0,103090.0,0.21700804]
[1746796607549,0.97191959,103100.0,103090.0,0.10451574]
[1746796607755,0.97191959,103100.0,103090.0,0.07321574]
[1746796608150,0.97191959,103100.0,103090.0,0.03409942]
[1746796609555,0.97191959,103100.0,103090.0,0.01916475]
[1746796610060,0.785568,103100.0,103090.0,0.01916475]
[1746796610361,0.785568,103100.0,103090.0,0.70832603]
[1746796610551,0.4150629,103100.0,103090.0,0.75162603]
[1746796610751,0.4102102,103100.0,103090.0,0.75162603]
[1746796611360,0.2502102,103100.0,103090.0,0.75162603]
[1746796612258,0.51038244,103100.0,103090.0,0.76162603]
[1746796612561,0.51038244,103100.0,103090.0,0.56759173]
[1746796612761,0.51038244,103100.0,103090.0,0.76162603]
[1746796613064,0.51038244,103100.0,103090.0,0.48162603]
[1746796613370,0.51038244,103100.0,103090.0,0.75162603]
[1746796614251,0.67038244,103100.0,103090.0,0.75162603]
[1746796615463,0.67038244,103100.0,103090.0,0.25589173]
[1746796615668,0.67038244,103100.0,103090.0,0.21589173]
[1746796615966,1.03118244,103100.0,103090.0,0.18429173]
[1746796616669,1.03318244,103100.0,103090.0,0.18229173]
[1746796617064,0.96136179,103100.0,103090.0,0.18029173]
[1746796617370,0.96336179,103100.0,103090.0,0.01616475]
[1746796617567,0.96136179,103100.0,103090.0,0.01616475]
[1746796617755,0.96436179,103100.0,103090.0,0.01616475]
[1746796620664,1.12760948,103100.0,103090.0,0.01616475]
[1746796620875,1.12760948,103100.0,103090.0,0.04946475]
[1746796621557,1.12760948,103100.0,103090.0,0.01616475]
[1746796621962,1.12760948,103100.0,103090.0,0.04946475]
[1746796623473,0.1940343,103090.0,103080.0,0.08056855]
[1746796623773,0.83608589,103090.0,103080.0,0.17756646]
[1746796623965,0.83608589,103090.0,103080.0,0.21479553]
[1746796624167,0.99608589,103090.0,103080.0,0.21479553]
[1746796624672,0.99608589,103090.0,103080.0,0.16742114]
[1746796624860,0.99808589,103090.0,103080.0,0.16742114]
[1746796625272,0.6537343,103090.0,103080.0,0.16742114]
[1746796625466,0.84008589,103090.0,103080.0,0.16742114]
[1746796625666,0.84008589,103090.0,103080.0,0.15249553]
[1746796626172,0.84008589,103090.0,103080.0,0.52249553]
[1746796626475,0.6223343,103090.0,103080.0,0.50469553]
[1746796626665,0.72097121,103090.0,103080.0,0.53729553]
[1746796627776,0.72824121,103090.0,103080.0,0.53729553]
[1746796628866,0.9145928,103090.0,103080.0,0.53729553]
[1746796630264,0.36744121,103090.0,103080.0,0.95809553]
[1746796630472,0.33644121,103090.0,103080.0,0.95809553]
[1746796630875,0.33644121,103090.0,103080.0,0.59729553]
[1746796631177,0.33644121,103090.0,103080.0,0.95809553]
[1746796631474,0.5551928,103090.0,103080.0,0.95809553]
[1746796631673,0.9159928,103090.0,103080.0,0.23202767]
[1746796631874,0.9159928,103090.0,103080.0,0.23202816]
[1746796632179,0.5551928,103090.0,103080.0,0.23202816]
[1746796632380,0.36884121,103090.0,103080.0,0.23202816]
[1746796632579,0.5551928,103090.0,103080.0,0.59282816]
[1746796632882,0.5551928,103090.0,103080.0,0.56202816]
[1746796633082,0.7483928,103090.0,103080.0,0.59462816]
[1746796633284,0.56204121,103090.0,103080.0,0.59462816]
[1746796633478,0.7483928,103090.0,103080.0,0.59462816]
[1746796633670,0.7483928,103090.0,103080.0,0.59463862]
[1746796634180,0.5883928,103090.0,103080.0,0.59463862]
[1746796634772,0.9491928,103090.0,103080.0,0.59463862]
[1746796635172,0.9491928,103090.0,103080.0,0.26463862]
[1746796635574,0.9491928,103090.0,103080.0,0.24989553]
[1746796635775,0.9491928,103090.0,103080.0,0.26506216]
[1746796636985,0.9491928,103090.0,103080.0,0.63506216]
[1746796637186,1.02312315,103090.0,103080.0,0.63506216]
[1746796637584,0.66232315,103090.0,103080.0,0.63506216]
[1746796638187,0.66232315,103090.0,103080.0,0.82911526]
[1746796638392,0.62912315,103090.0,103080.0,0.82911526]
[1746796638980,0.62912315,103090.0,103080.0,0.63506216]
[1746796639293,0.98992315,103090.0,103080.0,0.26506216]
[1746796639478,1.02322315,103090.0,103080.0,0.26506216]
[1746796639787,1.02322315,103090.0,103080.0,0.23286216]
[1746796639991,0.56378624,103090.0,103080.0,0.23286216]
[1746796640192,0.92458624,103090.0,103080.0,0.23286216]
[1746796640577,0.56378624,103090.0,103080.0,0.23286216]
[1746796640784,0.92458624,103090.0,103080.0,0.23286216]
[1746796641188,0.89823465,103090.0,103080.0,0.23286216]
[1746796641388,1.08458624,103090.0,103080.0,0.59286216]
[1746796641593,1.08458624,103090.0,103080.0,0.61286216]
[1746796642092,1.08458624,103090.0,103080.0,0.23286216]
[1746796642491,1.08458624,103090.0,103080.0,0.60286216]
[1746796642991,1.1092928,103090.0,103080.0,0.60286216]
[1746796643192,1.1092928,103090.0,103080.0,0.23286216]
[1746796644799,1.1092928,103090.0,103080.0,0.55286216]
[1746796645196,1.1092928,103090.0,103080.0,0.23286216]
[1746796645502,1.1092928,103090.0,103080.0,0.58286216]
[1746796646299,0.9492928,103090.0,103080.0,0.58286216]
[1746796647698,0.36884121,103090.0,103080.0,0.82320045]
[1746796648806,0.5551928,103090.0,103080.0,0.80811526]
[1746796649607,0.5551928,103090.0,103080.0,0.82325582]
[1746796649806,0.30394121,103090.0,103080.0,1.31001582]
[1746796650012,0.29908828,103090.0,103080.0,1.51636741]
[1746796650308,0.29908828,103090.0,103080.0,1.67636741]
[1746796651107,0.29908828,103090.0,103080.0,1.49001582]
[1746796651302,0.29908828,103090.0,103080.0,1.67636741]
[1746796652411,0.30394121,103090.0,103080.0,1.63636741]
[1746796653122,0.27934801,103090.0,103080.0,1.63636741]
[1746796653504,0.27734801,103090.0,103080.0,3.13636741]
[1746796653910,0.27534801,103090.0,103080.0,3.13636741]
[1746796654115,0.27534801,103090.0,103080.0,2.97637328]
[1746796654413,0.27534801,103090.0,103080.0,2.97637293]
[1746796654709,0.27534801,103090.0,103080.0,2.96122685]
[1746796654912,0.27534801,103090.0,103080.0,2.97637293]
[1746796655105,0.27534801,103090.0,103080.0,3.13637293]
[1746796656112,0.27534801,103090.0,103080.0,3.13637256]
[1746796656313,0.27534801,103090.0,103080.0,2.95002097]
[1746796656517,0.30664801,103090.0,103080.0,2.95002097]
[1746796656915,0.2326043,103090.0,103080.0,2.95002097]
[1746796657115,0.2326043,103090.0,103080.0,3.13637256]
[1746796658117,0.2326043,103090.0,103080.0,2.97637256]
[1746796659019,0.2326043,103090.0,103080.0,2.79002097]
[1746796659720,0.2326043,103090.0,103080.0,2.79001421]
[1746796660210,0.97215589,103090.0,103080.0,0.31557204]
[1746796660513,1.00315589,103090.0,103080.0,0.17727204]
[1746796660908,1.00315589,103090.0,103080.0,0.16213309]
[1746796661105,0.64235589,103090.0,103080.0,0.47213309]
[1746796661404,0.64235589,103090.0,103080.0,0.69898619]
[1746796662610,0.64635589,103090.0,103080.0,0.69998619]
[1746796662810,0.64635589,103090.0,103080.0,0.71503263]
[1746796663020,0.64935589,103090.0,103080.0,0.71503263]
[1746796663220,0.48935589,103090.0,103080.0,0.71503263]
[1746796663419,0.5633996,103090.0,103080.0,0.71505031]
[1746796663620,0.5633996,103090.0,103080.0,1.07585031]
[1746796663818,0.5633996,103090.0,103080.0,1.10595031]
[1746796664713,0.5633996,103090.0,103080.0,0.74515031]
[1746796664918,0.37704801,103090.0,103080.0,0.74515031]
[1746796665309,0.37704801,103090.0,103080.0,1.10595031]
[1746796665921,0.37704801,103090.0,103080.0,0.74515031]
[1746796666116,0.37704801,103090.0,103080.0,1.10595031]
[1746796666517,0.37704801,103090.0,103080.0,0.74515031]
[1746796666921,0.37704801,103090.0,103080.0,0.74515165]
[1746796667410,0.37704801,103090.0,103080.0,0.78238072]
[1746796670123,0.53704801,103090.0,103080.0,0.78238072]
[1746796670323,0.53704801,103090.0,103080.0,0.78238178]
[1746796671026,0.53704801,103090.0,103080.0,0.76731526]
[1746796671225,0.37704801,103090.0,103080.0,0.76731526]
[1746796672120,0.37704801,103090.0,103080.0,0.73008619]
[1746796672317,0.37704801,103090.0,103080.0,0.95366685]
[1746796672522,0.37704801,103090.0,103080.0,1.31446685]
[1746796672523,0.34604801,103090.0,103080.0,1.31446685]
[1746796673426,0.34604801,103090.0,103080.0,1.12811526]
[1746796673926,0.34604801,103090.0,103080.0,1.14328038]
[1746796676021,0.34604801,103090.0,103080.0,1.12811526]
[1746796676228,0.34604801,103090.0,103080.0,1.14328027]
[1746796677527,0.34604801,103090.0,103080.0,1.32963186]
[1746796678430,0.34119533,103090.0,103080.0,1.32963186]
[1746796678733,0.33877801,103090.0,103080.0,1.32963186]
[1746796679833,0.33877801,103090.0,103080.0,1.14328027]
[1746796680231,0.49777801,103090.0,103080.0,1.14328027]
[1746796680430,0.49577801,103090.0,103080.0,1.14228027]
[1746796680933,0.46337801,103090.0,103080.0,1.32863186]
[1746796681135,0.30337801,103090.0,103080.0,1.32863186]
[1746796681529,0.33437801,103090.0,103080.0,1.3286314]
[1746796682027,0.2603343,103090.0,103080.0,1.3286314]
[1746796682233,0.4203343,103090.0,103080.0,1.3286314]
[1746796682430,0.4203343,103090.0,103080.0,1.14227981]
[1746796682739,0.4203343,103090.0,103080.0,1.31875981]
[1746796682933,0.4506343,103090.0,103080.0,1.31875981]
[1746796683127,0.2906343,103090.0,103080.0,1.31875981]
[1746796683434,0.2603343,103090.0,103080.0,1.31875981]
[1746796683620,0.2603343,103090.0,103080.0,1.5051114]
[1746796683826,0.0353,103090.0,103080.0,1.5051114]
[1746796684128,0.004,103090.0,103080.0,1.86146299]
[1746796684328,0.004,103090.0,103080.0,1.95847099]
[1746796684730,0.17268062,103100.0,103090.0,0.2940343]
[1746796684932,0.17268062,103100.0,103090.0,1.19947951]
[1746796685129,0.36669612,103100.0,103090.0,2.79647551]
[1746796685330,0.26805921,103100.0,103090.0,2.72229787]
[1746796685530,0.33155921,103100.0,103090.0,2.62530187]
[1746796685933,0.33155921,103100.0,103090.0,2.75214187]
[1746796686128,0.49155921,103100.0,103090.0,2.75214187]
[1746796686635,0.49355921,103100.0,103090.0,2.75214187]
[1746796687037,0.49455921,103100.0,103090.0,2.75214187]
[1746796687534,0.49455921,103100.0,103090.0,2.75213007]
[1746796688230,0.49455921,103100.0,103090.0,2.78263007]
[1746796688629,0.4205155,103100.0,103090.0,2.78263007]
[1746796689526,0.2265,103100.0,103090.0,2.96898166]
[1746796689726,0.196,103100.0,103090.0,2.96898166]
[1746796690028,0.163,103100.0,103090.0,3.06597766]
[1746796690338,0.003,103100.0,103090.0,3.22597766]
[1746796691139,0.003,103100.0,103090.0,3.06597766]
[1746796691736,0.03907,103110.0,103090.0,3.06597766]
[1746796691737,0.03907,103110.0,103100.0,0.38036709]
[1746796691931,0.00727,103110.0,103100.0,1.2844369]
[1746796692147,0.29932151,103120.0,103110.0,0.1939967]
[1746796692338,0.29932151,103120.0,103110.0,1.34337736]
[1746796692842,0.10534371,103120.0,103110.0,2.84337736]
[1746796693032,0.10534371,103120.0,103110.0,3.03734586]
[1746796693233,0.07404371,103120.0,103110.0,3.22369745]
[1746796693541,0.07404371,103120.0,103110.0,3.05200509]
[1746796693945,0.07504371,103120.0,103110.0,3.05200509]
[1746796694133,0.07704371,103120.0,103110.0,3.21200509]
[1746796695133,0.07704371,103120.0,103110.0,3.33835668]
[1746796695337,0.09863691,103130.0,103120.0,0.1939778]
[1746796695533,0.12314577,103140.0,103130.0,0.193959]
[1746796695729,0.14825639,103150.0,103140.0,0.1939402]
[1746796695935,0.14825639,103150.0,103140.0,3.98567168]
[1746796696240,0.14825639,103150.0,103140.0,4.08732009]
[1746796696541,0.17945639,103150.0,103140.0,4.18427098]
[1746796696842,0.17945639,103150.0,103140.0,3.99791939]
[1746796697030,0.17945639,103150.0,103140.0,4.18627098]
[1746796697235,0.12968848,103150.0,103140.0,4.02627098]
[1746796697442,0.12968848,103150.0,103140.0,4.02827098]
[1746796697944,0.12968848,103150.0,103140.0,4.04275159]
[1746796699438,0.12968848,103150.0,103140.0,4.22910318]
[1746796699636,0.12968848,103150.0,103140.0,3.8564]
[1746796699835,0.12968848,103150.0,103140.0,4.04275159]
[1746796700341,0.12968848,103150.0,103140.0,4.22910318]
[1746796701248,0.12968848,103150.0,103140.0,4.04275159]
[1746796701435,0.16128848,103150.0,103140.0,4.04275159]
[1746796701747,0.0628,103150.0,103140.0,4.04275159]
[1746796701939,0.0312,103150.0,103140.0,4.04275159]
[1746796702140,0.0312,103150.0,103140.0,4.22910318]
[1746796703236,0.0312,103150.0,103140.0,4.04275159]
[1746796703432,0.2567214,103150.0,103140.0,3.8564]
[1746796703729,0.2567214,103150.0,103140.0,3.68234077]
[1746796703932,0.44307299,103150.0,103140.0,1.9208715]
[1746796704130,0.63357299,103150.0,103140.0,2.0491515]
[1746796704341,0.4472214,103150.0,103140.0,2.0491515]
[1746796704544,0.99437299,103150.0,103140.0,0.3937515]
[1746796704743,0.63357299,103150.0,103140.0,0.2437515]
[1746796704944,0.63357299,103150.0,103140.0,0.5737515]
[1746796705742,0.4472214,103150.0,103140.0,0.5737515]
[1746796705945,0.63357299,103150.0,103140.0,0.5737515]
[1746796706137,0.63357299,103150.0,103140.0,0.5737915]
[1746796707353,0.4472214,103150.0,103140.0,0.7677317]
[1746796711741,0.4472214,103150.0,103140.0,1.35211236]
[1746796712042,0.4472214,103150.0,103140.0,1.63186395]
[1746796712043,0.2228,103150.0,103140.0,1.63186395]
[1746796712240,0.0628,103150.0,103140.0,1.44551236]
[1746796713143,0.2567214,103150.0,103140.0,1.4604027]
[1746796713747,0.2567214,103150.0,103140.0,1.27405111]
[1746796714049,0.2567214,103150.0,103140.0,1.4604027]
[1746796715149,0.2567214,103150.0,103140.0,1.46042618]
[1746796715446,0.2567214,103150.0,103140.0,1.44551236]
[1746796715649,0.2567214,103150.0,103140.0,1.46042617]
[1746796716548,0.2567214,103150.0,103140.0,1.44551236]
[1746796716749,0.2567214,103150.0,103140.0,1.46042906]
[1746796716951,0.2567214,103150.0,103140.0,1.44551236]
[1746796717150,0.2567214,103150.0,103140.0,1.46043266]
[1746796718252,0.2567214,103150.0,103140.0,1.460438]
[1746796719950,0.2567214,103150.0,103140.0,1.2740932]
[1746796720144,0.4167214,103150.0,103140.0,1.2740932]
[1746796720653,0.4492214,103150.0,103140.0,1.27409962]
[1746796721450,0.4492214,103150.0,103140.0,1.14573962]
[1746796721651,0.4492214,103150.0,103140.0,1.25860077]
[1746796722546,0.4564914,103150.0,103140.0,1.25860077]
[1746796722753,0.4564914,103150.0,103140.0,1.09790077]
[1746796722953,0.4564914,103150.0,103140.0,1.0606717]
[1746796723248,0.64284299,103150.0,103140.0,0.9337915]
[1746796723442,0.64284299,103150.0,103140.0,0.1154315]
[1746796723643,1.25364299,103150.0,103140.0,0.1154315]
[1746796724349,0.1939778,103120.0,103110.0,1.96846032]
[1746796724543,0.1939778,103120.0,103110.0,2.44340939]
[1746796724746,0.2870778,103120.0,103110.0,3.95828291]
[1746796724948,0.2870778,103120.0,103110.0,4.0552338]
[1746796725154,0.4470778,103120.0,103110.0,4.0232338]
[1746796725351,0.4470778,103120.0,103110.0,3.80975197]
[1746796725654,0.4490778,103120.0,103110.0,3.96632233]
[1746796725844,0.4490778,103120.0,103110.0,3.83864233]
[1746796726039,0.4490778,103120.0,103110.0,3.848496]
[1746796726253,0.4490778,103120.0,103110.0,4.007296]
[1746796726445,0.4490778,103120.0,103110.0,4.15641852]
[1746796726646,0.4490778,103120.0,103110.0,4.25884759]
[1746796727153,0.4490778,103120.0,103110.0,4.25884231]
[1746796727454,0.4179778,103120.0,103110.0,4.25884231]
[1746796727652,0.4179778,103120.0,103110.0,4.25884229]
[1746796728255,0.4179778,103120.0,103110.0,4.11070161]
[1746796728443,0.4179778,103120.0,103110.0,4.09581655]
[1746796728649,0.4179778,103120.0,103110.0,4.11069763]
[1746796729846,0.4179778,103120.0,103110.0,3.92434604]
[1746796730154,0.4179778,103120.0,103110.0,3.92434662]
[1746796730848,0.224,103120.0,103110.0,4.11069821]
[1746796731040,0.224,103120.0,103110.0,4.11069657]
[1746796731247,0.064,103120.0,103110.0,4.11069657]
[1746796731447,0.0323,103120.0,103110.0,4.11069657]
[1746796732159,0.2262778,103120.0,103110.0,4.11069657]
[1746796732346,0.2588778,103120.0,103110.0,4.0734675]
[1746796732553,0.0649,103120.0,103110.0,3.92434498]
[1746796732959,0.0649,103120.0,103110.0,4.11069657]
[1746796733154,0.2249,103120.0,103110.0,4.11069657]
[1746796733758,0.2249,103120.0,103110.0,4.09581655]
[1746796734345,0.0649,103120.0,103110.0,4.09581655]
[1746796734957,0.0323,103120.0,103110.0,4.10581655]
[1746796735257,0.002,103120.0,103110.0,4.32216814]
[1746796735449,0.002,103120.0,103110.0,4.45216814]
[1746796735758,0.002,103120.0,103110.0,4.35216814]
[1746796736647,0.002,103120.0,103110.0,3.97216814]
[1746796736850,0.002,103120.0,103110.0,4.15581655]
[1746796737251,0.002,103120.0,103110.0,4.16581655]
[1746796737443,0.0349,103120.0,103110.0,4.16581655]
[1746796738758,0.0339,103120.0,103110.0,4.16181655]
[1746796738961,0.0329,103120.0,103110.0,4.15781655]
[1746796740952,0.0329,103120.0,103110.0,4.03021655]
[1746796741255,0.3868778,103120.0,103110.0,3.36687076]
[1746796741559,0.4201778,103120.0,103110.0,3.83179076]
[1746796741751,0.4525778,103120.0,103110.0,3.84187076]
[1746796741947,0.4525778,103120.0,103110.0,3.33427076]
[1746796742250,0.4525778,103120.0,103110.0,3.77807076]
[1746796742451,0.63892939,103120.0,103110.0,1.88940532]
[1746796742646,0.63892939,103120.0,103110.0,0.10440532]
[1746796742855,1.24972939,103120.0,103110.0,0.10295089]
[1746796743051,1.34670939,103120.0,103110.0,0.10195089]
[1746796743248,0.99972939,103120.0,103110.0,0.31068273]
[1746796743455,0.4525778,103120.0,103110.0,0.68068273]
[1746796743854,0.4525778,103120.0,103110.0,0.64294759]
[1746796744051,0.4525778,103120.0,103110.0,0.48029918]
[1746796744252,0.4525778,103120.0,103110.0,0.66424759]
[1746796744451,0.63892939,103120.0,103110.0,0.66394759]
[1746796744651,0.63892939,103120.0,103110.0,0.66294759]
[1746796744855,0.63992939,103120.0,103110.0,0.44624292]
[1746796745059,0.64092939,103120.0,103110.0,0.64023962]
[1746796745865,0.4545778,103120.0,103110.0,0.64023962]
[1746796746956,0.4545778,103120.0,103110.0,0.6402381]
[1746796747156,0.64092939,103120.0,103110.0,0.3402381]
[1746796747557,0.64092939,103120.0,103110.0,0.1262414]
[1746796748052,0.73790939,103120.0,103110.0,0.11157905]
[1746796748950,0.73790939,103120.0,103110.0,0.12624231]
[1746796749155,0.73790939,103120.0,103110.0,0.12624278]
[1746796749354,1.09870939,103120.0,103110.0,0.11157905]
[1746796749550,1.66350098,103120.0,103110.0,0.01462816]
[1746796749764,0.1940343,103090.0,103080.0,2.12380193]
[1746796749958,0.1940343,103090.0,103080.0,2.50528703]